[Event "Late-Titled-Tuesday-Blitz-January-30-2024"]
[Site "Chess.com"]
[Date "2024.01.30"]
[Round "5"]
[White "pavet"]
[Black "vesalhamedinia"]
[Result "1-0"]
[WhiteElo "2780"]
[BlackElo "2479"]
[TimeControl "180+1"]
[EndTime "14:56:55 PST"]
[Termination "pavet won by resignation"]

1. e4 {[%clk 0:03:00.9]} 1... c5 {[%clk 0:02:58.7]} 2. Nf3 {[%clk 0:03:00.6]}
2... Nc6 {[%clk 0:02:59.1]} 3. d4 {[%clk 0:03:00.9]} 3... cxd4 {[%clk 0:03:00]}
4. Nxd4 {[%clk 0:03:01.7]} 4... Nf6 {[%clk 0:03:00.9]} 5. Nc3 {[%clk 0:03:01.8]}
5... e5 {[%clk 0:03:01.3]} 6. Ndb5 {[%clk 0:03:01.2]} 6... d6 {[%clk 0:03:01.8]}
7. Nd5 {[%clk 0:03:01.2]} 7... Nxd5 {[%clk 0:03:01.9]} 8. exd5 {[%clk
0:03:02.1]} 8... Nb8 {[%clk 0:03:02.7]} 9. c4 {[%clk 0:03:00]} 9... a6 {[%clk
0:03:03]} 10. Nc3 {[%clk 0:03:00.3]} 10... Be7 {[%clk 0:03:03.4]} 11. Be3 {[%clk
0:03:00.4]} 11... O-O {[%clk 0:03:01.5]} 12. Be2 {[%clk 0:03:00.4]} 12... f5
{[%clk 0:03:01.9]} 13. f3 {[%clk 0:03:00.9]} 13... Nd7 {[%clk 0:03:01.5]} 14.
O-O {[%clk 0:03:00.9]} 14... Qc7 {[%clk 0:02:53.7]} 15. Rc1 {[%clk 0:03:00.1]}
15... b6 {[%clk 0:02:53.6]} 16. b4 {[%clk 0:02:59.4]} 16... Rf6 {[%clk
0:02:40.6]} 17. Qd2 {[%clk 0:02:59]} 17... Rg6 {[%clk 0:02:39]} 18. Bd3 {[%clk
0:02:45.4]} 18... Nf6 {[%clk 0:02:36.7]} 19. Na4 {[%clk 0:02:44.6]} 19... Rb8
{[%clk 0:02:33.6]} 20. Qf2 {[%clk 0:02:40.1]} 20... e4 {[%clk 0:02:28.8]} 21.
Be2 {[%clk 0:02:31.1]} 21... Bd8 {[%clk 0:02:11.6]} 22. Kh1 {[%clk 0:02:17.8]}
22... Bd7 {[%clk 0:02:09.6]} 23. Nc3 {[%clk 0:02:11.2]} 23... exf3 {[%clk
0:01:52]} 24. gxf3 {[%clk 0:02:09.5]} 24... f4 {[%clk 0:01:37.4]} 25. Bxf4
{[%clk 0:02:06]} 25... Nh5 {[%clk 0:01:37.7]} 26. Be3 {[%clk 0:02:02.1]} 26...
Bh3 {[%clk 0:01:31.2]} 27. Rg1 {[%clk 0:02:02]} 27... Qf7 {[%clk 0:01:17.5]} 28.
Ne4 {[%clk 0:01:58.5]} 28... Nf4 {[%clk 0:01:03.6]} 29. Rxg6 {[%clk 0:01:25.2]}
29... hxg6 {[%clk 0:00:58.2]} 30. Nxd6 {[%clk 0:01:19.9]} 30... Qf8 {[%clk
0:00:52.8]} 31. Ne4 {[%clk 0:00:57.6]} 31... Bg2+ {[%clk 0:00:35.1]} 32. Qxg2
{[%clk 0:00:55.3]} 32... Nxg2 {[%clk 0:00:35]} 33. Kxg2 {[%clk 0:00:56.2]} 33...
Qxb4 {[%clk 0:00:35.2]} 34. d6 {[%clk 0:00:52.5]} 34... Qb2 {[%clk 0:00:35.2]}
35. Kf1 {[%clk 0:00:45.7]} 35... Qxa2 {[%clk 0:00:35.1]} 36. c5 {[%clk
0:00:43.4]} 36... bxc5 {[%clk 0:00:35.1]} 37. Bc4+ {[%clk 0:00:43.3]} 37...
Qxc4+ {[%clk 0:00:35.6]} 38. Rxc4 {[%clk 0:00:44.2]} 38... Rb1+ {[%clk
0:00:35.6]} 39. Ke2 {[%clk 0:00:43.9]} 39... Rb2+ {[%clk 0:00:35.2]} 40. Kd3
{[%clk 0:00:44.2]} 40... Rxh2 {[%clk 0:00:35.2]} 41. Rxc5 {[%clk 0:00:41.8]}
41... Kf7 {[%clk 0:00:30.5]} 42. Rc8 {[%clk 0:00:40.6]} 42... Bh4 {[%clk
0:00:24.1]} 43. d7 {[%clk 0:00:38.9]} 43... Ra2 {[%clk 0:00:18.1]} 44. Ng5+
{[%clk 0:00:35.8]} 44... Bxg5 {[%clk 0:00:12.3]} 45. Bxg5 {[%clk 0:00:36.7]}
45... Ra3+ {[%clk 0:00:12.8]} 46. Ke2 {[%clk 0:00:36.8]} 1-0

[Event "Late-Titled-Tuesday-Blitz-January-30-2024"]
[Site "Chess.com"]
[Date "2024.01.30"]
[Round "5"]
[White "RCone"]
[Black "tgpgoat"]
[Result "1-0"]
[WhiteElo "2323"]
[BlackElo "2507"]
[TimeControl "180+1"]
[EndTime "14:56:58 PST"]
[Termination "RCone won on time"]

1. e4 {[%clk 0:03:00.9]} 1... c5 {[%clk 0:02:58.4]} 2. Nc3 {[%clk 0:02:59.3]}
2... Nc6 {[%clk 0:02:57.7]} 3. Bb5 {[%clk 0:02:58.4]} 3... Nd4 {[%clk
0:02:57.1]} 4. Nf3 {[%clk 0:02:57.7]} 4... e6 {[%clk 0:02:53.5]} 5. O-O {[%clk
0:02:56.1]} 5... a6 {[%clk 0:02:52.7]} 6. Bd3 {[%clk 0:02:55.4]} 6... Nf6 {[%clk
0:02:53]} 7. Nxd4 {[%clk 0:02:54.4]} 7... cxd4 {[%clk 0:02:53.9]} 8. Ne2 {[%clk
0:02:54.7]} 8... Bc5 {[%clk 0:02:53.5]} 9. c3 {[%clk 0:02:53.8]} 9... Qb6 {[%clk
0:02:51.6]} 10. b4 {[%clk 0:02:51.4]} 10... Be7 {[%clk 0:02:46.2]} 11. Nxd4
{[%clk 0:02:50.4]} 11... O-O {[%clk 0:02:41.7]} 12. Bb2 {[%clk 0:02:29.4]} 12...
Qc7 {[%clk 0:02:23.4]} 13. Qe2 {[%clk 0:02:08.8]} 13... b5 {[%clk 0:02:21.1]}
14. a4 {[%clk 0:02:05.1]} 14... bxa4 {[%clk 0:02:12.1]} 15. Rxa4 {[%clk
0:02:06]} 15... a5 {[%clk 0:02:11]} 16. Rfa1 {[%clk 0:01:59.5]} 16... Bb7 {[%clk
0:01:59.4]} 17. Rxa5 {[%clk 0:01:59.1]} 17... Rxa5 {[%clk 0:01:59.2]} 18. bxa5
{[%clk 0:01:57.1]} 18... Bc5 {[%clk 0:01:53.6]} 19. a6 {[%clk 0:01:50.6]} 19...
Ba8 {[%clk 0:01:53.6]} 20. Nb5 {[%clk 0:01:26.3]} 20... Qf4 {[%clk 0:01:47.5]}
21. Ba3 {[%clk 0:01:12.4]} 21... Ng4 {[%clk 0:01:40.2]} 22. g3 {[%clk
0:01:05.3]} 22... Bxf2+ {[%clk 0:00:57.3]} 23. Kg2 {[%clk 0:01:05.1]} 23... Qg5
{[%clk 0:00:57.8]} 24. Bxf8 {[%clk 0:00:57.1]} 24... d5 {[%clk 0:00:31.9]} 25.
Nc7 {[%clk 0:00:52.9]} 25... dxe4 {[%clk 0:00:27.5]} 26. Bxe4 {[%clk 0:00:51.4]}
26... Qh5 {[%clk 0:00:27.6]} 27. h3 {[%clk 0:00:45.8]} 27... Qe5 {[%clk
0:00:28]} 28. Qxg4 {[%clk 0:00:39.3]} 28... Bxe4+ {[%clk 0:00:15.3]} 29. Kxf2
{[%clk 0:00:38.6]} 29... Bg6 {[%clk 0:00:13.7]} 30. a7 {[%clk 0:00:24.8]} 30...
h5 {[%clk 0:00:05]} 31. Qe2 {[%clk 0:00:20]} 31... Qf6+ {[%clk 0:00:04.6]} 32.
Qf3 {[%clk 0:00:19.8]} 32... Qg5 {[%clk 0:00:04.4]} 33. Qf4 {[%clk 0:00:16.4]}
33... Qd8 {[%clk 0:00:01.4]} 34. a8=Q {[%clk 0:00:15.4]} 34... Qd7 {[%clk
0:00:01.1]} 35. Bd6+ {[%clk 0:00:14.8]} 35... Kh7 {[%clk 0:00:01.6]} 36. Be5
{[%clk 0:00:14.2]} 36... f6 {[%clk 0:00:01.4]} 37. Bxf6 {[%clk 0:00:13.8]} 37...
Qd3 {[%clk 0:00:01.4]} 38. Bxg7 {[%clk 0:00:10]} 1-0

[Event "Late-Titled-Tuesday-Blitz-January-30-2024"]
[Site "Chess.com"]
[Date "2024.01.30"]
[Round "5"]
[White "Tomytoteph"]
[Black "tptagain"]
[Result "0-1"]
[WhiteElo "2621"]
[BlackElo "2909"]
[TimeControl "180+1"]
[EndTime "14:57:03 PST"]
[Termination "tptagain won by resignation"]

1. e4 {[%clk 0:02:58]} 1... c6 {[%clk 0:02:59.6]} 2. d4 {[%clk 0:02:57.8]} 2...
d5 {[%clk 0:03:00.2]} 3. Nd2 {[%clk 0:02:57.6]} 3... dxe4 {[%clk 0:02:57.8]} 4.
Nxe4 {[%clk 0:02:58.1]} 4... Nf6 {[%clk 0:02:58.2]} 5. Nxf6+ {[%clk 0:02:58.1]}
5... exf6 {[%clk 0:02:59.1]} 6. Nf3 {[%clk 0:02:58]} 6... Bd6 {[%clk 0:02:57.8]}
7. Be3 {[%clk 0:02:54]} 7... O-O {[%clk 0:02:57.1]} 8. Qd2 {[%clk 0:02:54.7]}
8... Re8 {[%clk 0:02:55.9]} 9. O-O-O {[%clk 0:02:53.9]} 9... Na6 {[%clk
0:02:50.8]} 10. Kb1 {[%clk 0:02:50.5]} 10... Nb4 {[%clk 0:02:43.1]} 11. a3
{[%clk 0:02:43.3]} 11... a5 {[%clk 0:02:21.6]} 12. Bf4 {[%clk 0:01:56.8]} 12...
Bxf4 {[%clk 0:01:49.1]} 13. Qxf4 {[%clk 0:01:55.3]} 13... Nd5 {[%clk 0:01:48.7]}
14. Qd2 {[%clk 0:01:52.9]} 14... b5 {[%clk 0:01:48.4]} 15. Bd3 {[%clk
0:01:52.9]} 15... b4 {[%clk 0:01:48.6]} 16. a4 {[%clk 0:01:52.9]} 16... Nb6
{[%clk 0:01:42.7]} 17. b3 {[%clk 0:01:51.5]} 17... Nd5 {[%clk 0:01:36.3]} 18.
Rde1 {[%clk 0:01:51.4]} 18... Bg4 {[%clk 0:01:36.5]} 19. Nh4 {[%clk 0:01:37]}
19... g6 {[%clk 0:01:23.1]} 20. h3 {[%clk 0:01:35.4]} 20... Nc3+ {[%clk
0:01:23.1]} 21. Kc1 {[%clk 0:01:19.7]} 21... Qxd4 {[%clk 0:01:15.5]} 22. hxg4
{[%clk 0:01:19.9]} 22... Nxa4 {[%clk 0:00:56.1]} 23. Kd1 {[%clk 0:00:56.3]}
23... Nc3+ {[%clk 0:00:53.7]} 24. Kc1 {[%clk 0:00:56.3]} 24... Ne4 {[%clk
0:00:21]} 25. c3 {[%clk 0:00:31.9]} 25... bxc3 {[%clk 0:00:21.9]} 26. Qc2 {[%clk
0:00:31.3]} 26... Nc5 {[%clk 0:00:21.7]} 27. Bc4 {[%clk 0:00:29.8]} 27... a4
{[%clk 0:00:16.7]} 28. Rxe8+ {[%clk 0:00:20]} 28... Rxe8 {[%clk 0:00:17.6]} 29.
Nf3 {[%clk 0:00:20.6]} 29... Qf4+ {[%clk 0:00:15.8]} 30. Kb1 {[%clk 0:00:17.5]}
30... Qxg4 {[%clk 0:00:14.2]} 31. Qxc3 {[%clk 0:00:12.9]} 31... Nxb3 {[%clk
0:00:13.8]} 32. Bxb3 {[%clk 0:00:12.6]} 32... axb3 {[%clk 0:00:14.4]} 33. g3
{[%clk 0:00:11.1]} 33... Qe4+ {[%clk 0:00:13.7]} 34. Kb2 {[%clk 0:00:09.2]}
34... Qe2+ {[%clk 0:00:14.2]} 35. Nd2 {[%clk 0:00:09.1]} 35... Rd8 {[%clk
0:00:13.4]} 36. Kc1 {[%clk 0:00:07.6]} 36... Qxf2 {[%clk 0:00:12]} 37. Rf1
{[%clk 0:00:07]} 37... Qe2 {[%clk 0:00:11.1]} 38. Rxf6 {[%clk 0:00:06]} 38...
Qe1+ {[%clk 0:00:11.4]} 39. Kb2 {[%clk 0:00:05.2]} 39... Qxd2+ {[%clk
0:00:11.8]} 40. Qxd2 {[%clk 0:00:02.7]} 40... Rxd2+ {[%clk 0:00:12.7]} 41. Kxb3
{[%clk 0:00:03.3]} 41... Rd3+ {[%clk 0:00:13.1]} 0-1

[Event "Late-Titled-Tuesday-Blitz-January-30-2024"]
[Site "Chess.com"]
[Date "2024.01.30"]
[Round "5"]
[White "PNEPaul"]
[Black "jcmesafischer"]
[Result "1-0"]
[WhiteElo "1864"]
[BlackElo "2336"]
[TimeControl "180+1"]
[EndTime "14:57:03 PST"]
[Termination "PNEPaul won on time"]

1. e4 {[%clk 0:03:00.9]} 1... c5 {[%clk 0:02:56.2]} 2. Nf3 {[%clk 0:03:00.4]}
2... d6 {[%clk 0:02:55.8]} 3. d4 {[%clk 0:03:00.2]} 3... cxd4 {[%clk 0:02:55.7]}
4. c3 {[%clk 0:03:00.5]} 4... Nf6 {[%clk 0:02:54.7]} 5. Bd3 {[%clk 0:02:59.7]}
5... d5 {[%clk 0:02:52.7]} 6. e5 {[%clk 0:02:57.6]} 6... Nfd7 {[%clk 0:02:52.1]}
7. cxd4 {[%clk 0:02:57.7]} 7... e6 {[%clk 0:02:51.5]} 8. O-O {[%clk 0:02:56.8]}
8... b6 {[%clk 0:02:50.6]} 9. Nc3 {[%clk 0:02:56.6]} 9... Ba6 {[%clk 0:02:49.2]}
10. Bf4 {[%clk 0:02:43]} 10... Bxd3 {[%clk 0:02:38.1]} 11. Qxd3 {[%clk
0:02:42.9]} 11... a6 {[%clk 0:02:38.9]} 12. Rac1 {[%clk 0:02:35.2]} 12... b5
{[%clk 0:02:31.9]} 13. a3 {[%clk 0:02:33.8]} 13... Nb6 {[%clk 0:02:26.7]} 14.
Nd2 {[%clk 0:02:30]} 14... Nc4 {[%clk 0:02:20.8]} 15. Nxc4 {[%clk 0:02:25.7]}
15... bxc4 {[%clk 0:02:21.7]} 16. Qg3 {[%clk 0:02:23.5]} 16... Nc6 {[%clk
0:02:17.3]} 17. Rfd1 {[%clk 0:02:21.1]} 17... Rb8 {[%clk 0:02:15.6]} 18. Rc2
{[%clk 0:02:08]} 18... Rb3 {[%clk 0:02:12]} 19. h4 {[%clk 0:01:57.1]} 19... Qb6
{[%clk 0:02:08.8]} 20. Na4 {[%clk 0:01:46.1]} 20... Qb7 {[%clk 0:01:50]} 21. Rc3
{[%clk 0:01:42.6]} 21... Na5 {[%clk 0:01:43.9]} 22. Nc5 {[%clk 0:01:38.4]} 22...
Bxc5 {[%clk 0:01:41.9]} 23. Qxg7 {[%clk 0:01:37.1]} 23... Be7 {[%clk 0:00:47]}
24. Qxh8+ {[%clk 0:01:34.2]} 24... Kd7 {[%clk 0:00:47]} 25. Qxh7 {[%clk
0:01:28.5]} 25... Rxb2 {[%clk 0:00:40.7]} 26. Qxf7 {[%clk 0:01:25.2]} 26... Nc6
{[%clk 0:00:36.7]} 27. h5 {[%clk 0:01:19.5]} 27... Qa7 {[%clk 0:00:35.6]} 28.
Bg5 {[%clk 0:01:12.7]} 28... Rb8 {[%clk 0:00:31.3]} 29. h6 {[%clk 0:01:08.1]}
29... Rf8 {[%clk 0:00:26.2]} 30. Qg7 {[%clk 0:00:58.9]} 30... Qb8 {[%clk
0:00:21.1]} 31. h7 {[%clk 0:00:46.5]} 31... Qb2 {[%clk 0:00:09.6]} 32. Rf3
{[%clk 0:00:36.6]} 32... Rxf3 {[%clk 0:00:04.9]} 33. gxf3 {[%clk 0:00:35.7]}
33... c3 {[%clk 0:00:04.2]} 34. h8=Q {[%clk 0:00:32.8]} 34... c2 {[%clk
0:00:03.5]} 35. Rc1 {[%clk 0:00:31.6]} 35... Qxd4 {[%clk 0:00:01.7]} 36. Qhh6
{[%clk 0:00:19.6]} 36... Qd1+ {[%clk 0:00:01.7]} 37. Kg2 {[%clk 0:00:19.4]}
37... Qxc1 {[%clk 0:00:02.1]} 38. Bxc1 {[%clk 0:00:18.6]} 38... Nd4 {[%clk
0:00:02.3]} 39. Qhh7 {[%clk 0:00:17.1]} 39... Nf5 {[%clk 0:00:02.5]} 40. Qg5
{[%clk 0:00:15.4]} 40... Kc6 {[%clk 0:00:02.8]} 41. Qd2 {[%clk 0:00:14.3]} 41...
Kd7 {[%clk 0:00:02.1]} 42. Qxc2 {[%clk 0:00:13.9]} 42... Kd8 {[%clk 0:00:01.3]}
43. Qa4 {[%clk 0:00:13]} 1-0

[Event "Late-Titled-Tuesday-Blitz-January-30-2024"]
[Site "Chess.com"]
[Date "2024.01.30"]
[Round "5"]
[White "Smile2005"]
[Black "ElephantChessGenius"]
[Result "1-0"]
[WhiteElo "2437"]
[BlackElo "2242"]
[TimeControl "180+1"]
[EndTime "14:57:10 PST"]
[Termination "Smile2005 won on time"]

1. e4 {[%clk 0:02:48]} 1... c5 {[%clk 0:02:44]} 2. Nf3 {[%clk 0:02:45.6]} 2...
Nc6 {[%clk 0:02:43.3]} 3. Bb5 {[%clk 0:02:45.1]} 3... e5 {[%clk 0:02:41.5]} 4.
O-O {[%clk 0:02:20.2]} 4... Bd6 {[%clk 0:02:35.9]} 5. c3 {[%clk 0:02:19.5]} 5...
a6 {[%clk 0:02:35.1]} 6. Ba4 {[%clk 0:02:19.5]} 6... b5 {[%clk 0:02:34.8]} 7.
Bc2 {[%clk 0:02:19.7]} 7... Nge7 {[%clk 0:02:30.5]} 8. a4 {[%clk 0:02:19.8]}
8... Bb7 {[%clk 0:02:29.3]} 9. Re1 {[%clk 0:02:19.4]} 9... O-O {[%clk
0:02:28.8]} 10. d4 {[%clk 0:02:17.3]} 10... cxd4 {[%clk 0:02:25.7]} 11. cxd4
{[%clk 0:02:16.7]} 11... Nxd4 {[%clk 0:02:19.4]} 12. Nxd4 {[%clk 0:02:16.5]}
12... exd4 {[%clk 0:02:19.7]} 13. e5 {[%clk 0:02:16.7]} 13... Bb4 {[%clk
0:02:12.4]} 14. Bd2 {[%clk 0:02:09.8]} 14... Bxd2 {[%clk 0:02:12.1]} 15. Nxd2
{[%clk 0:02:10]} 15... Ng6 {[%clk 0:01:58.2]} 16. Nf3 {[%clk 0:02:08.4]} 16...
Bxf3 {[%clk 0:01:57.6]} 17. Qxf3 {[%clk 0:02:09.3]} 17... Qc7 {[%clk 0:01:56.6]}
18. Bxg6 {[%clk 0:02:06.1]} 18... hxg6 {[%clk 0:01:28.4]} 19. axb5 {[%clk
0:02:05.5]} 19... a5 {[%clk 0:01:16.9]} 20. Qd5 {[%clk 0:02:00]} 20... Rab8
{[%clk 0:01:13.3]} 21. Red1 {[%clk 0:01:52.3]} 21... Rfe8 {[%clk 0:01:09.7]} 22.
Qxd4 {[%clk 0:01:47.6]} 22... Qxe5 {[%clk 0:01:04.9]} 23. Qxe5 {[%clk
0:01:36.7]} 23... Rxe5 {[%clk 0:01:02]} 24. Rxa5 {[%clk 0:01:36.8]} 24... Rbxb5
{[%clk 0:00:58.2]} 25. Rxb5 {[%clk 0:01:36.9]} 25... Rxb5 {[%clk 0:00:57.6]} 26.
Rd2 {[%clk 0:01:29.8]} 26... Kf8 {[%clk 0:00:57.4]} 27. f4 {[%clk 0:01:29.3]}
27... Ke7 {[%clk 0:00:56.9]} 28. Kf2 {[%clk 0:01:29.6]} 28... d6 {[%clk
0:00:55.8]} 29. g3 {[%clk 0:01:29.9]} 29... Rb3 {[%clk 0:00:55.7]} 30. Ke2
{[%clk 0:01:27.9]} 30... Kd7 {[%clk 0:00:55.6]} 31. Kd1 {[%clk 0:01:28.4]} 31...
Rb5 {[%clk 0:00:53]} 32. Kc2 {[%clk 0:01:28.4]} 32... Ke6 {[%clk 0:00:51.9]} 33.
b3 {[%clk 0:01:28.3]} 33... d5 {[%clk 0:00:51.2]} 34. Kc3 {[%clk 0:01:28.5]}
34... Kd6 {[%clk 0:00:49.6]} 35. b4 {[%clk 0:01:28.8]} 35... Rb7 {[%clk
0:00:48]} 36. Kb3 {[%clk 0:01:26.1]} 36... Re7 {[%clk 0:00:45.4]} 37. Ka4 {[%clk
0:01:25.6]} 37... Kc6 {[%clk 0:00:42.9]} 38. b5+ {[%clk 0:01:25.4]} 38... Kc5
{[%clk 0:00:42.5]} 39. Rc2+ {[%clk 0:01:22.7]} 39... Kb6 {[%clk 0:00:41.8]} 40.
Rc6+ {[%clk 0:01:22]} 40... Kb7 {[%clk 0:00:41.5]} 41. Rd6 {[%clk 0:01:22.1]}
41... Re2 {[%clk 0:00:28]} 42. Rxd5 {[%clk 0:01:18.5]} 42... Rxh2 {[%clk
0:00:25.5]} 43. Rd7+ {[%clk 0:01:17.7]} 43... Kb6 {[%clk 0:00:26]} 44. Rxf7
{[%clk 0:01:18]} 44... Rg2 {[%clk 0:00:23.6]} 45. Rxg7 {[%clk 0:01:15.5]} 45...
Rxg3 {[%clk 0:00:23.9]} 46. Rf7 {[%clk 0:01:15.6]} 46... Rg1 {[%clk 0:00:17.4]}
47. Rf6+ {[%clk 0:01:15.7]} 47... Kb7 {[%clk 0:00:17.6]} 48. Kb4 {[%clk
0:01:15.3]} 48... Rg4 {[%clk 0:00:13.3]} 49. Kc5 {[%clk 0:01:13.9]} 49... Rg1
{[%clk 0:00:07.4]} 50. Rf7+ {[%clk 0:01:14]} 50... Kb8 {[%clk 0:00:07.2]} 51.
Kb6 {[%clk 0:01:12.9]} 51... Kc8 {[%clk 0:00:07.3]} 52. Rf8+ {[%clk 0:01:11.9]}
52... Kd7 {[%clk 0:00:07.5]} 53. Kb7 {[%clk 0:01:11.7]} 53... Rf1 {[%clk
0:00:07]} 54. b6 {[%clk 0:01:11.3]} 54... g5 {[%clk 0:00:07.1]} 55. f5 {[%clk
0:01:00.3]} 55... g4 {[%clk 0:00:07.2]} 56. f6 {[%clk 0:01:00.6]} 56... g3
{[%clk 0:00:07.6]} 57. Rg8 {[%clk 0:01:00.2]} 57... Rxf6 {[%clk 0:00:04.2]} 58.
Rxg3 {[%clk 0:01:00.3]} 58... Rf1 {[%clk 0:00:02.3]} 59. Rd3+ {[%clk 0:01:00.2]}
59... Ke7 {[%clk 0:00:01.4]} 60. Kb8 {[%clk 0:00:59.7]} 1-0

[Event "Late-Titled-Tuesday-Blitz-January-30-2024"]
[Site "Chess.com"]
[Date "2024.01.30"]
[Round "5"]
[White "BilodeauA"]
[Black "mbojan"]
[Result "1-0"]
[WhiteElo "3034"]
[BlackElo "2865"]
[TimeControl "180+1"]
[EndTime "14:57:12 PST"]
[Termination "BilodeauA won on time"]

1. e4 {[%clk 0:03:00.9]} 1... a6 {[%clk 0:02:59.9]} 2. Nf3 {[%clk 0:03:01]} 2...
e6 {[%clk 0:03:00.6]} 3. d4 {[%clk 0:03:01.6]} 3... d5 {[%clk 0:03:00.6]} 4.
Nbd2 {[%clk 0:03:01.4]} 4... c5 {[%clk 0:03:00.5]} 5. dxc5 {[%clk 0:02:58.7]}
5... Bxc5 {[%clk 0:03:01.4]} 6. Bd3 {[%clk 0:02:58.6]} 6... Nf6 {[%clk
0:02:58.4]} 7. Qe2 {[%clk 0:02:59.1]} 7... Nc6 {[%clk 0:02:58.5]} 8. O-O {[%clk
0:02:57.6]} 8... Qc7 {[%clk 0:02:58.9]} 9. Re1 {[%clk 0:02:47.8]} 9... Ng4
{[%clk 0:02:47.1]} 10. Rf1 {[%clk 0:02:47.9]} 10... Nf6 {[%clk 0:02:47.7]} 11.
e5 {[%clk 0:02:47.8]} 11... Ng4 {[%clk 0:02:45.9]} 12. Nb3 {[%clk 0:02:43]}
12... Ba7 {[%clk 0:02:45.8]} 13. Bf4 {[%clk 0:02:30.7]} 13... f6 {[%clk
0:02:45.2]} 14. Bg3 {[%clk 0:02:14]} 14... Ngxe5 {[%clk 0:02:33.3]} 15. Nxe5
{[%clk 0:02:09.4]} 15... fxe5 {[%clk 0:02:27.2]} 16. Rae1 {[%clk 0:02:03.4]}
16... O-O {[%clk 0:02:27.4]} 17. Kh1 {[%clk 0:01:55.9]} 17... Bb8 {[%clk
0:01:31.7]} 18. c4 {[%clk 0:01:55.9]} 18... Qf7 {[%clk 0:01:28.4]} 19. f3 {[%clk
0:01:47.6]} 19... Bd6 {[%clk 0:01:23.4]} 20. a3 {[%clk 0:01:43.8]} 20... Bd7
{[%clk 0:01:23.3]} 21. Qc2 {[%clk 0:01:44]} 21... g6 {[%clk 0:01:20.2]} 22. Rd1
{[%clk 0:01:15.5]} 22... Rad8 {[%clk 0:01:15.9]} 23. Rfe1 {[%clk 0:01:15]} 23...
Bc8 {[%clk 0:01:15.2]} 24. cxd5 {[%clk 0:01:00.7]} 24... exd5 {[%clk 0:01:16.1]}
25. Bxa6 {[%clk 0:01:01.3]} 25... bxa6 {[%clk 0:00:52.3]} 26. Qxc6 {[%clk
0:01:01.2]} 26... Bb7 {[%clk 0:00:33]} 27. Qb6 {[%clk 0:01:01.5]} 27... d4
{[%clk 0:00:32.9]} 28. Nd2 {[%clk 0:00:59.3]} 28... Rfe8 {[%clk 0:00:10]} 29.
Bxe5 {[%clk 0:00:58.7]} 29... Bxe5 {[%clk 0:00:05.4]} 30. Rxe5 {[%clk
0:00:58.9]} 30... d3 {[%clk 0:00:06.2]} 31. Rde1 {[%clk 0:00:52.8]} 31... Bd5
{[%clk 0:00:06]} 32. Re7 {[%clk 0:00:47.8]} 32... Qf8 {[%clk 0:00:02.8]} 33.
R7e3 {[%clk 0:00:29.5]} 33... Rxe3 {[%clk 0:00:02.8]} 34. Qxe3 {[%clk
0:00:30.4]} 34... Bf7 {[%clk 0:00:03]} 35. h3 {[%clk 0:00:30.6]} 35... Qd6
{[%clk 0:00:02.9]} 36. Ne4 {[%clk 0:00:31.1]} 36... Qe5 {[%clk 0:00:03.4]} 37.
Qd2 {[%clk 0:00:28.9]} 37... Kg7 {[%clk 0:00:03.3]} 38. Nc3 {[%clk 0:00:28.8]}
38... Qd4 {[%clk 0:00:03.6]} 39. Re4 {[%clk 0:00:28.9]} 39... Qf6 {[%clk
0:00:04]} 40. Rf4 {[%clk 0:00:29]} 40... Qe5 {[%clk 0:00:03.9]} 41. Re4 {[%clk
0:00:29.5]} 41... Qf6 {[%clk 0:00:04.3]} 42. Re3 {[%clk 0:00:26.3]} 42... Qd4
{[%clk 0:00:04.4]} 43. Re1 {[%clk 0:00:24.9]} 43... h5 {[%clk 0:00:04.4]} 44.
Nd1 {[%clk 0:00:18.5]} 44... h4 {[%clk 0:00:04.3]} 45. Nf2 {[%clk 0:00:19]}
45... Bc4 {[%clk 0:00:03.3]} 46. Ng4 {[%clk 0:00:19.4]} 46... Kf7 {[%clk
0:00:01.5]} 47. Qg5 {[%clk 0:00:16.2]} 47... Rd7 {[%clk 0:00:01.2]} 48. Ne5+
{[%clk 0:00:15.4]} 1-0

[Event "Late-Titled-Tuesday-Blitz-January-30-2024"]
[Site "Chess.com"]
[Date "2024.01.30"]
[Round "5"]
[White "Charodej1"]
[Black "akanga001"]
[Result "0-1"]
[WhiteElo "2274"]
[BlackElo "1989"]
[TimeControl "180+1"]
[EndTime "14:57:13 PST"]
[Termination "akanga001 won by resignation"]

1. e4 {[%clk 0:03:00.9]} 1... d6 {[%clk 0:02:55]} 2. d4 {[%clk 0:02:58.8]} 2...
g6 {[%clk 0:02:53.9]} 3. h4 {[%clk 0:02:57.9]} 3... h6 {[%clk 0:02:52.6]} 4. Nc3
{[%clk 0:02:57.4]} 4... Bg7 {[%clk 0:02:50.7]} 5. Bc4 {[%clk 0:02:56.7]} 5... b6
{[%clk 0:02:47.3]} 6. Qf3 {[%clk 0:02:42]} 6... e6 {[%clk 0:02:06.1]} 7. Nge2
{[%clk 0:02:34.2]} 7... Bb7 {[%clk 0:02:00.5]} 8. Be3 {[%clk 0:02:19.9]} 8... a6
{[%clk 0:01:59.8]} 9. a4 {[%clk 0:02:02.4]} 9... c5 {[%clk 0:01:57.5]} 10. h5
{[%clk 0:01:43.6]} 10... g5 {[%clk 0:01:55.6]} 11. Qg3 {[%clk 0:01:35.6]} 11...
Ne7 {[%clk 0:01:45.9]} 12. f4 {[%clk 0:01:22.5]} 12... d5 {[%clk 0:01:44.8]} 13.
exd5 {[%clk 0:00:33]} 13... Nf5 {[%clk 0:01:43.5]} 14. Qf2 {[%clk 0:00:28.1]}
14... exd5 {[%clk 0:01:38.6]} 15. Bd3 {[%clk 0:00:22.5]} 15... Nxe3 {[%clk
0:01:23.8]} 16. Qxe3+ {[%clk 0:00:22.1]} 16... Qe7 {[%clk 0:01:24.4]} 17. Qxe7+
{[%clk 0:00:20]} 17... Kxe7 {[%clk 0:01:25.3]} 18. dxc5 {[%clk 0:00:15.8]} 18...
bxc5 {[%clk 0:01:24.6]} 19. O-O-O {[%clk 0:00:16.7]} 19... Nd7 {[%clk
0:01:21.6]} 20. Bf5 {[%clk 0:00:16.2]} 20... Nf6 {[%clk 0:01:20]} 21. Rhe1
{[%clk 0:00:10.3]} 21... Rhe8 {[%clk 0:01:13]} 22. fxg5 {[%clk 0:00:10.6]} 22...
hxg5 {[%clk 0:01:10.8]} 23. Nf4+ {[%clk 0:00:11]} 23... Kf8 {[%clk 0:01:10.1]}
24. Rxe8+ {[%clk 0:00:11]} 24... Rxe8 {[%clk 0:01:09]} 25. Nfxd5 {[%clk
0:00:11.4]} 25... Nxh5 {[%clk 0:01:06]} 26. Bg4 {[%clk 0:00:10.8]} 26... Ng3
{[%clk 0:00:59.8]} 27. b3 {[%clk 0:00:08.9]} 27... Ne4 {[%clk 0:00:57.7]} 28.
Nxe4 {[%clk 0:00:08.8]} 28... Rxe4 {[%clk 0:00:57.7]} 29. Bf3 {[%clk 0:00:09.7]}
29... Rd4 {[%clk 0:00:50]} 30. Rxd4 {[%clk 0:00:09.7]} 30... Bxd4 {[%clk
0:00:46.7]} 31. Nb6 {[%clk 0:00:07.4]} 31... Bxf3 {[%clk 0:00:44.7]} 32. gxf3
{[%clk 0:00:08.3]} 32... f5 {[%clk 0:00:44.5]} 33. Kd2 {[%clk 0:00:07.7]} 33...
g4 {[%clk 0:00:44.9]} 34. fxg4 {[%clk 0:00:08]} 34... fxg4 {[%clk 0:00:44.9]}
35. Ke2 {[%clk 0:00:08.8]} 35... Ke7 {[%clk 0:00:36.8]} 36. c3 {[%clk
0:00:09.1]} 36... Bg1 {[%clk 0:00:31.7]} 37. Nc4 {[%clk 0:00:06.1]} 37... Ke6
{[%clk 0:00:27.7]} 38. Kd3 {[%clk 0:00:05.5]} 38... Kd5 {[%clk 0:00:26.6]} 39.
Nd2 {[%clk 0:00:05]} 39... Kc6 {[%clk 0:00:23.8]} 40. b4 {[%clk 0:00:05.3]}
40... cxb4 {[%clk 0:00:23.3]} 41. cxb4 {[%clk 0:00:06.2]} 41... g3 {[%clk
0:00:20.5]} 42. Ne4 {[%clk 0:00:06.3]} 42... g2 {[%clk 0:00:19.7]} 43. Ke2
{[%clk 0:00:05]} 43... Ba7 {[%clk 0:00:18.6]} 0-1